bitfinex/quotes_SOLUSD_20220118
["timestamp","ask_amount","ask_price","bid_price","bid_amount"]
[1642476538969,23.4911,139.68,139.6,88.2915]
[1642476539369,23.4911,139.68,139.6,89.70926429]
[1642476539770,23.4911,139.68,139.6,89.96926429]
[1642476539969,23.4911,139.68,139.6,17.2515]
[1642476540171,0.25,139.67,139.6,17.2515]
[1642476540368,3.114,139.67,139.6,17.2515]
[1642476540768,2.864,139.67,139.6,17.2515]
[1642476542373,26.3551,139.68,139.6,17.2515]
[1642476542576,23.4911,139.68,139.6,17.2515]
[1642476544380,23.4911,139.68,139.6,16.7515]
[1642476546478,3.114,139.67,139.58,14.82991905]
[1642476547579,13.8568,139.67,139.58,14.82991905]
[1642476547782,13.8568,139.67,139.59,0.25]
[1642476548180,13.8568,139.67,139.58,10.7431]
[1642476552784,13.8568,139.67,139.56,10.7444]
[1642476552983,13.8568,139.67,139.56,10.9944]
[1642476553184,13.8568,139.67,139.56,17.2544]
[1642476555982,13.6068,139.67,139.56,17.2544]
[1642476556382,13.6068,139.67,139.56,17.0044]
[1642476557283,0.25,139.66,139.56,17.0044]
[1642476557485,13.6092,139.65,139.56,17.0044]
[1642476557685,23.7654,139.64,139.56,17.0044]
[1642476557884,24.0154,139.64,139.56,17.0044]
[1642476558385,24.0154,139.64,139.56,16.5044]
[1642476558586,34.7605,139.64,139.56,16.5044]
[1642476559389,34.7605,139.64,139.56,16.2444]
[1642476559592,34.7605,139.64,139.56,6.0]
[1642476559791,10.7473,139.61,139.54,16.746]
[1642476560322,0.25,139.6,139.54,16.746]
[1642476561318,13.6112,139.63,139.55,0.25]
[1642476561528,23.7654,139.64,139.55,10.9957]
[1642476561721,23.7654,139.64,139.55,44.0632]
[1642476561919,23.7654,139.64,139.56,1.40718435]
[1642476562320,23.7654,139.64,139.57,0.25]
[1642476562520,23.7654,139.64,139.58,10.7423]
[1642476562719,0.25,139.63,139.58,10.7423]
[1642476562920,0.25,139.63,139.58,17.0023]
[1642476563323,23.7654,139.64,139.58,17.0023]
[1642476563921,23.7373,139.67,139.59,46.38899249]
[1642476564120,47.2997,139.67,139.6,10.7417]
[1642476564320,2.865,139.68,139.6,17.0017]
[1642476564521,22.86420359,139.69,139.61,0.25]
[1642476564720,22.86420359,139.69,139.61,6.654]
[1642476565121,29.68343303,139.7,139.61,12.914]
[1642476565721,0.25,139.69,139.61,12.914]
[1642476565924,0.25,139.69,139.63,10.7397]
[1642476566122,20.39186229,139.69,139.63,10.7397]
[1642476566322,0.25,139.69,139.63,10.7397]
[1642476567825,25.8161,139.7,139.63,10.7397]
[1642476569128,22.9521,139.7,139.63,10.7397]
[1642476569626,0.25,139.69,139.63,10.7397]
[1642476569926,22.9521,139.7,139.63,10.7397]
[1642476570126,22.9521,139.7,139.63,10.9997]
[1642476570626,22.9521,139.7,139.63,16.9997]
[1642476571727,0.25,139.69,139.67,0.23140368]
[1642476573230,22.9521,139.7,139.67,0.23140368]
[1642476573428,22.9521,139.7,139.68,3.03219997]
[1642476573631,2.863,139.71,139.68,3.03219997]
[1642476573828,0.25,139.7,139.68,3.03219997]
[1642476574432,0.25,139.7,139.67,0.23140368]
[1642476579136,2.863,139.71,139.68,6.06439994]
[1642476579335,28.15343303,139.73,139.68,12.93839994]
[1642476579635,3.86733303,139.73,139.69,42.24718381]
[1642476579835,3.86733303,139.73,139.69,42.75718381]
[1642476580036,3.86733303,139.73,139.7,10.7326]
[1642476580236,3.86733303,139.73,139.7,10.9926]
[1642476580437,3.86733303,139.73,139.7,16.9926]
[1642476580935,3.86733303,139.78,139.7,16.7326]
[1642476581342,2.862,139.77,139.7,16.7326]
[1642476581735,27.1161,139.77,139.7,16.7326]
[1642476581935,20.17569224,139.76,139.7,10.7326]
[1642476582335,27.1161,139.77,139.67,0.23140368]
[1642476582538,2.03905272,139.75,139.67,0.23140368]
[1642476582737,2.863,139.74,139.67,0.23140368]
[1642476582938,23.5327,139.73,139.67,0.23140368]
[1642476583142,2.863,139.72,139.67,0.23140368]
[1642476583338,0.25,139.72,139.67,0.23140368]
[1642476583538,2.863,139.71,139.67,0.23140368]
[1642476583941,0.25,139.7,139.67,0.23140368]
[1642476584141,2.863,139.72,139.67,0.23140368]
[1642476584342,2.863,139.74,139.68,6.06439994]
[1642476584541,3.86733303,139.75,139.68,13.09739994]
[1642476584741,3.86733303,139.75,139.69,12.3842836]
[1642476584942,3.86733303,139.75,139.69,22.6142836]
[1642476585148,3.86733303,139.76,139.69,28.8742836]
[1642476586143,12.69974755,139.78,139.69,74.61808207]
[1642476586345,0.25,139.77,139.69,27.4746]
[1642476588347,0.25,139.77,139.69,26.9646]
[1642476588544,2.862,139.77,139.69,26.9646]
[1642476588951,25.5625,139.77,139.69,26.9646]
[1642476589652,36.2975,139.77,139.69,26.9646]
[1642476590352,0.25,139.76,139.69,26.9646]
[1642476590752,25.5625,139.77,139.69,26.9646]
[1642476590951,22.7005,139.77,139.69,16.7346]
[1642476591150,22.7005,139.77,139.7,0.25]
[1642476591352,0.25,139.76,139.7,10.7334]
[1642476591853,0.25,139.76,139.7,16.7334]
[1642476592051,0.25,139.76,139.75,0.23140368]
[1642476593254,41.25,139.76,139.75,0.23140368]
[1642476594156,44.112,139.76,139.75,0.23140368]
[1642476594359,59.73726204,139.76,139.75,0.23140368]
[1642476594556,3.112,139.76,139.75,0.23140368]
[1642476594856,2.862,139.76,139.75,0.23140368]
[1642476595059,22.7005,139.77,139.75,0.23140368]
[1642476596258,53.25,139.76,139.75,0.23140368]
[1642476596660,56.112,139.76,139.75,0.23140368]
[1642476597562,66.8478,139.76,139.75,0.23140368]
[1642476597766,13.8478,139.76,139.75,0.23140368]
[1642476598563,13.8478,139.76,139.75,0.00140368]
[1642476599767,24.0778,139.76,139.75,0.00140368]
[1642476600365,24.0778,139.76,139.62,4.08681905]
[1642476600366,68.0,139.75,139.62,4.08681905]
[1642476600564,26.069,139.74,139.62,4.08681905]
[1642476600765,10.7415,139.71,139.62,4.08681905]
[1642476600966,16.21376225,139.7,139.62,4.08681905]
[1642476601165,16.46376225,139.7,139.62,4.08681905]
[1642476601385,16.46376225,139.7,139.6,4.08681905]
[1642476601591,21.86376225,139.7,139.6,4.08681905]
[1642476601893,10.742,139.68,139.6,4.08681905]
[1642476602092,68.0,139.66,139.6,1.23921863]
[1642476602293,68.11646703,139.64,139.57,6.10499139]
[1642476602495,2.865,139.63,139.57,6.10499139]
[1642476602693,3.115,139.63,139.57,6.10499139]
[1642476602895,3.115,139.63,139.53,0.38629]
[1642476603295,3.115,139.63,139.59,0.23223598]
[1642476603695,10.748,139.62,139.59,0.23223598]
[1642476603896,3.115,139.61,139.59,0.23223598]
[1642476604096,28.59003455,139.6,139.59,0.23223598]
[1642476604296,0.84003455,139.6,139.59,0.23223598]
[1642476605700,11.58813455,139.6,139.59,0.23223598]
[1642476606500,10.9981,139.6,139.59,0.00223598]
[1642476607504,0.25,139.6,139.59,0.00223598]
[1642476607708,10.7472,139.62,139.59,0.00223598]
[1642476607911,4.13229145,139.63,139.59,0.00223598]
[1642476608310,1.26729145,139.63,139.59,0.00223598]
[1642476609409,1.26729145,139.63,139.61,1.35588372]
[1642476609611,1.26729145,139.63,139.61,5.74400775]
[1642476609809,1.26729145,139.63,139.61,2.71180778]
[1642476612315,1.26729145,139.63,139.61,8.77620772]
[1642476613335,1.26729145,139.63,139.61,2.71180778]
[1642476614536,1.26729145,139.63,139.61,1.35592406]
[1642476614739,1.26729145,139.63,139.62,1.35588372]
[1642476615136,1.51729145,139.63,139.62,7.42028366]
[1642476615537,4.90423806,139.66,139.62,7.42028366]
[1642476615937,2.04023806,139.66,139.62,24.16058366]
[1642476616237,2.04023806,139.67,139.62,24.16058366]
[1642476617340,22.8604,139.68,139.62,24.16058366]
[1642476618339,0.40696731,139.67,139.62,24.16058366]
[1642476618939,0.40696731,139.67,139.62,7.42028366]
[1642476619739,0.40696731,139.67,139.62,6.06439994]
[1642476620043,0.40696731,139.67,139.64,1.35588372]
[1642476620442,0.40696731,139.67,139.66,1.35592406]
[1642476621041,2.04023806,139.68,139.66,1.35592406]
[1642476621843,12.78143806,139.69,139.66,1.35592406]
[1642476622041,10.97922967,139.68,139.66,1.35592406]
[1642476622643,13.01946773,139.68,139.66,1.35592406]
[1642476624743,2.29023806,139.68,139.66,1.35592406]
[1642476625445,2.29023806,139.68,139.67,1.35588372]
[1642476626244,11.73723131,139.68,139.67,1.35588372]
[1642476627044,2.29023806,139.68,139.67,1.35588372]
[1642476629143,5.15323806,139.68,139.67,1.35588372]
[1642476629846,5.15323806,139.68,139.67,4.38808369]
[1642476630148,2.04023806,139.68,139.67,1.35588372]
[1642476630946,2.04023806,139.68,139.67,2.71180778]
[1642476631847,2.04023806,139.7,139.67,2.71180778]
[1642476632050,2.04023806,139.7,139.68,6.06439994]
[1642476632647,2.04023806,139.7,139.69,1.35588372]
[1642476632848,2.04023806,139.71,139.69,1.35588372]
[1642476633649,2.04023806,139.72,139.69,1.35588372]
[1642476633849,2.04023806,139.72,139.7,3.03219997]
[1642476634650,2.04023806,139.73,139.7,3.03219997]
[1642476635654,2.04023806,139.73,139.7,13.76609997]
[1642476635853,2.04023806,139.73,139.71,0.25]
[1642476636251,2.04023806,139.73,139.72,4.38812403]
[1642476636450,2.04023806,139.75,139.72,4.38812403]
[1642476637858,2.04023806,139.74,139.72,4.38812403]
[1642476638659,2.04023806,139.74,139.73,3.03219997]
[1642476639991,0.25,139.74,139.73,3.03219997]
[1642476640691,2.04023806,139.75,139.73,3.03219997]
[1642476641188,2.04023806,139.75,139.74,3.03219997]
[1642476641590,0.25,139.75,139.74,4.38812403]
[1642476641790,2.862,139.78,139.74,4.38812403]
[1642476641991,0.25,139.77,139.74,4.38812403]
[1642476642994,0.25,139.77,139.76,1.35588372]
[1642476644790,0.25,139.77,139.76,7.42028366]
[1642476645191,0.25,139.77,139.76,1.35588372]
[1642476645391,1.06121174,139.77,139.76,1.35588372]
[1642476645991,0.25,139.77,139.76,1.35588372]
[1642476646992,0.25,139.77,139.76,2.71180778]
[1642476648094,0.25,139.77,139.76,8.77620772]
[1642476649498,23.6051,139.8,139.76,8.77620772]
[1642476649698,2.861,139.81,139.76,8.77620772]
[1642476649899,13.091,139.85,139.76,7.420324]
[1642476650099,23.7256,139.84,139.78,1.35588372]
[1642476650500,36.11364382,139.84,139.78,1.35588372]
[1642476650698,12.38804382,139.84,139.78,1.35588372]
[1642476650998,2.861,139.85,139.78,1.35588372]
[1642476651204,2.861,139.86,139.78,1.35588372]
[1642476651400,4.08333632,139.83,139.78,1.35588372]
[1642476651598,4.08333632,139.83,139.78,12.08358372]
[1642476652200,4.08333632,139.83,139.8,1.35592406]
[1642476652800,2.861,139.84,139.8,1.35592406]
[1642476653002,9.6484744,139.83,139.8,1.35592406]
[1642476654300,3.11,139.82,139.81,6.06439994]
[1642476654503,0.25,139.82,139.81,6.06439994]
[1642476655306,0.25,139.82,139.81,7.42028366]
[1642476657507,0.25,139.82,139.81,8.77620772]
[1642476659908,0.25,139.83,139.81,8.77620772]
[1642476660507,0.25,139.83,139.81,7.420324]
[1642476660707,0.25,139.83,139.82,1.35588372]
[1642476661312,2.86,139.85,139.82,1.35588372]
[1642476661711,13.5891,139.85,139.83,0.00439994]
[1642476661911,13.5891,139.85,139.82,1.35588372]
[1642476662310,13.5891,139.85,139.82,0.00588372]
[1642476662510,14.36769612,139.84,139.74,83.06840919]
[1642476662710,10.7315,139.82,139.74,83.06840919]
[1642476662912,0.25,139.81,139.74,60.38110919]
[1642476663413,2.0416309,139.8,139.74,60.38110919]
[1642476663613,2.0416309,139.8,139.74,36.11090919]
[1642476663816,2.0416309,139.8,139.74,36.37090919]
[1642476664312,2.0416309,139.8,139.73,10.23]
[1642476664514,0.25,139.79,139.73,10.23]
[1642476665313,2.0416309,139.79,139.74,38.85056853]
[1642476665514,2.0416309,139.79,139.75,10.7296]
[1642476665713,2.0416309,139.79,139.75,18.7326]
[1642476665918,2.0416309,139.79,139.76,0.25]
[1642476666317,2.0416309,139.8,139.76,0.25]
[1642476666716,8.41823342,139.86,139.77,10.7278]
[1642476666916,5.55723342,139.86,139.77,10.7278]
[1642476667117,5.55723342,139.86,139.78,0.25]
[1642476667317,8.41723342,139.88,139.78,19.164]
[1642476667516,8.41723342,139.88,139.78,20.54705068]
[1642476667722,8.41723342,139.88,139.79,41.30773923]
[1642476667917,8.41723342,139.88,139.83,1.35592406]
[1642476668521,4.0820846,139.87,139.83,1.35592406]
[1642476669519,5.55723342,139.9,139.83,1.35592406]
[1642476670019,16.28223342,139.9,139.83,1.35592406]
[1642476670221,2.859,139.89,139.83,1.35592406]
[1642476670422,11.96224669,139.88,139.83,1.35592406]
[1642476670619,2.859,139.89,139.83,1.35592406]
[1642476670821,0.25,139.88,139.83,1.35592406]
[1642476672922,0.25,139.88,139.82,45.04413342]
[1642476673122,2.859,139.89,139.85,1.35592406]
[1642476673322,5.55723342,139.91,139.85,8.52592406]
[1642476673523,8.41623342,139.91,139.85,8.52592406]
[1642476674324,4.3312419,139.9,139.85,8.52592406]
[1642476674725,4.3312419,139.9,139.85,51.39205022]
[1642476675125,4.0812419,139.89,139.85,51.39205022]
[1642476675327,4.0812419,139.89,139.85,51.65205022]
[1642476676129,0.25,139.9,139.85,51.65205022]
[1642476676330,0.25,139.91,139.85,62.37305022]
[1642476676537,5.55723342,139.92,139.85,62.37305022]
[1642476676734,5.55723342,139.92,139.86,0.25]
[1642476677937,5.55723342,139.92,139.86,10.97]
[1642476678137,5.55723342,139.92,139.86,10.72]
[1642476678339,5.55723342,139.92,139.87,0.25]
[1642476678539,6.9398864,139.94,139.89,1.35592406]
[1642476679340,6.9398864,139.94,139.89,1.61592406]
[1642476679541,4.0808864,139.93,139.89,45.72580853]
[1642476680556,4.0808864,139.94,139.89,45.72580853]
[1642476680758,6.9388864,139.94,139.89,45.72580853]
[1642476681163,6.9388864,139.94,139.89,1.61592406]
[1642476682161,6.9388864,139.94,139.89,1.35592406]
[1642476682359,0.25,139.93,139.89,1.35592406]
[1642476683562,0.25,139.93,139.84,10.7214]
[1642476683762,0.25,139.93,139.89,1.35592406]
[1642476683962,4.0806057,139.92,139.89,1.35592406]
[1642476684764,4.0806057,139.92,139.89,1.61592406]
[1642476684965,4.0806057,139.93,139.89,1.61592406]
[1642476685165,4.0806057,139.93,139.9,35.93949338]
[1642476685366,4.0806057,139.93,139.9,36.44949338]
[1642476685968,4.0806057,139.94,139.9,36.44949338]
[1642476686668,1.17409375,139.95,139.9,47.16689338]
[1642476688170,5.55723342,139.97,139.9,47.16689338]
[1642476688572,5.55723342,139.97,139.9,46.91689338]
[1642476689071,5.55723342,139.97,139.94,1.35592406]
[1642476689271,6.06,139.96,139.94,1.35592406]
[1642476689575,8.41523342,139.97,139.94,1.35592406]
[1642476689972,4.07961761,139.95,139.94,1.35592406]
[1642476690674,4.07961761,139.96,139.94,1.35592406]
[1642476690873,7.11181758,139.96,139.94,1.35592406]
[1642476691403,4.07961761,139.95,139.94,1.35592406]
[1642476692079,1.34997594,139.94,139.87,34.3418]
[1642476692277,1.34997594,139.94,139.89,0.25]
[1642476692779,1.34997594,139.94,139.87,24.1118]
[1642476692979,6.939005,139.94,139.85,10.23]
[1642476693183,4.080005,139.94,139.86,41.71813331]
[1642476693378,4.080005,139.94,139.86,41.97813331]
[1642476693679,2.859,139.95,139.86,0.51]
[1642476693680,8.16011497,139.93,139.86,0.51]
[1642476693878,8.16011497,139.93,139.86,0.25]
[1642476694083,8.16011497,139.93,139.86,10.9696]
[1642476694383,8.16011497,139.93,139.86,11.2296]
[1642476694585,8.16011497,139.93,139.86,82.5296]
[1642476694785,8.16011497,139.93,139.87,39.57303568]
[1642476694984,4.080005,139.93,139.87,39.57303568]
[1642476695183,4.080005,139.93,139.88,0.25]
[1642476695384,4.080005,139.93,139.88,10.9686]
[1642476695784,4.080005,139.93,139.88,6.51]
[1642476695984,4.080005,139.93,139.88,0.51]
[1642476696184,8.16011497,139.94,139.88,0.51]
[1642476696384,8.16011497,139.94,139.86,0.25]
[1642476696583,8.16011497,139.94,139.86,10.48]
[1642476696784,8.16011497,139.94,139.86,61.09459053]
[1642476697188,8.16011497,139.94,139.86,55.09459053]
[1642476697587,8.16011497,139.94,139.86,65.81419053]
[1642476698688,8.16011497,139.94,139.86,137.11419053]
[1642476699114,8.13011497,139.94,139.86,65.81419053]
[1642476699717,8.13011497,139.94,139.86,71.81419053]
[1642476700315,8.13011497,139.94,139.86,143.11419053]
[1642476706722,8.13011497,139.94,139.86,144.49496753]
[1642476707823,9.13244544,139.94,139.86,144.49496753]
[1642476708026,9.13244544,139.94,139.86,98.7596]
[1642476708424,4.080005,139.94,139.86,98.7596]
[1642476709026,4.080005,139.93,139.86,98.7596]
[1642476709428,4.080005,139.93,139.86,143.84794155]
[1642476710162,4.080005,139.93,139.86,72.54794155]
[1642476710328,4.080005,139.93,139.86,72.28794155]
[1642476711730,4.080005,139.93,139.86,143.84794155]
[1642476716542,4.080005,139.93,139.87,1.380777]
[1642476716742,4.080005,139.94,139.88,20.9465]
[1642476716941,4.080005,139.94,139.88,28.9935]
[1642476717143,4.080005,139.94,139.88,36.634277]
[1642476717344,4.080005,139.94,139.9,71.3]
[1642476717542,4.080005,139.94,139.9,81.53]
[1642476717773,4.080005,139.94,139.91,10.9645]
[1642476717969,4.080005,139.94,139.92,45.21529748]
[1642476718175,2.858,139.96,139.92,45.21529748]
[1642476718671,68.78905272,139.92,139.81,3.77502831]
[1642476718879,7.46387245,139.86,139.68,9.04470478]
[1642476719070,7.46387245,139.86,139.68,19.27470478]
[1642476719071,13.091,139.85,139.68,19.27470478]
[1642476719274,25.40531082,139.85,139.69,71.3]
[1642476719472,26.46422378,139.84,139.68,19.27470478]
[1642476719772,13.8424,139.83,139.68,54.96470478]
[1642476719972,10.23,139.82,139.68,44.73470478]
[1642476720173,2.861,139.81,139.68,44.73470478]
[1642476720475,2.861,139.81,139.68,9.04470478]
[1642476720672,10.23,139.82,139.76,77.40499139]
[1642476720873,7.46387245,139.86,139.76,77.3]
[1642476721073,17.69387245,139.86,139.76,82.855]
[1642476721474,17.69387245,139.86,139.77,40.09254712]
[1642476721676,20.55387245,139.86,139.77,40.09254712]
[1642476721875,25.1734203,139.86,139.77,40.35254712]
[1642476722076,25.1734203,139.86,139.77,40.09254712]
[1642476722375,25.4334203,139.86,139.77,40.09254712]
[1642476722577,0.25,139.85,139.77,40.09254712]
[1642476722776,13.091,139.84,139.77,40.09254712]
[1642476723176,13.091,139.84,139.78,0.25]
[1642476724477,10.23,139.84,139.78,0.25]
[1642476724876,10.49,139.84,139.78,0.25]
[1642476725878,0.25,139.83,139.78,0.25]
[1642476726079,3.111,139.83,139.78,0.25]
[1642476726478,3.111,139.83,139.77,40.09254712]
[1642476726878,0.25,139.82,139.77,40.09254712]
[1642476727279,0.25,139.82,139.69,34.9418]
[1642476727579,0.25,139.82,139.69,112.2418]
[1642476727779,10.48,139.82,139.69,34.9418]
[1642476727982,10.48,139.82,139.69,24.7118]
[1642476728180,10.48,139.82,139.7,38.48998358]
[1642476728381,2.862,139.81,139.7,44.48998358]
[1642476728679,2.862,139.81,139.71,71.3]
[1642476728880,0.25,139.8,139.72,0.25]
[1642476729680,2.862,139.81,139.72,0.25]
[1642476729881,10.23,139.82,139.72,0.25]
[1642476730080,10.49,139.82,139.71,77.56]
[1642476730280,3.111,139.81,139.71,6.26]
[1642476730480,6.23427751,139.81,139.71,6.26]
[1642476730683,6.23427751,139.81,139.71,0.26]
[1642476730880,6.23427751,139.81,139.7,116.04998358]
[1642476731782,3.111,139.81,139.71,0.25]
[1642476732782,2.861,139.81,139.71,0.25]
[1642476732982,13.092,139.84,139.71,0.25]
[1642476733782,10.23,139.84,139.73,71.3]
[1642476733983,10.23,139.84,139.74,37.29915081]
[1642476734185,10.49,139.84,139.75,71.3]
[1642476734385,10.49,139.84,139.76,0.25]
[1642476734582,2.861,139.83,139.76,0.25]
[1642476734783,10.49,139.84,139.76,0.25]
[1642476735286,0.25,139.83,139.74,43.55915081]
[1642476735482,2.861,139.82,139.74,43.55915081]
[1642476736585,2.861,139.82,139.75,0.25]
[1642476737184,2.861,139.83,139.75,0.25]
[1642476738391,0.25,139.82,139.75,0.25]
[1642476738587,2.861,139.83,139.75,0.25]
[1642476739788,0.25,139.82,139.75,0.25]
[1642476742291,3.121,139.83,139.75,0.25]
[1642476742690,2.861,139.83,139.75,0.25]
[1642476742891,2.861,139.83,139.75,6.844]
[1642476743092,22.8187,139.86,139.75,6.844]
[1642476743292,22.8187,139.86,139.75,13.104]
[1642476743494,22.8187,139.86,139.75,23.334]
[1642476744038,2.861,139.87,139.75,34.0611]
[1642476744241,24.9669,139.88,139.76,71.3]
[1642476744437,24.9669,139.88,139.77,10.23]
[1642476744637,24.9669,139.88,139.77,10.74]
[1642476744838,24.9669,139.88,139.78,46.41996181]
[1642476745338,25.2269,139.88,139.79,0.25]
[1642476745537,25.2269,139.88,139.79,82.2739]
[1642476745938,0.26,139.88,139.79,88.5339]
[1642476746337,0.25,139.89,139.79,88.5339]
[1642476749141,3.12,139.9,139.79,88.5339]
[1642476749743,0.25,139.89,139.79,88.2739]
[1642476749943,2.86,139.88,139.79,88.2739]
[1642476750143,2.86,139.89,139.79,88.2739]
[1642476750442,2.86,139.9,139.79,88.2739]
[1642476751043,2.86,139.9,139.79,88.5339]
[1642476751245,2.86,139.9,139.79,96.6879]
[1642476751842,25.5859,139.91,139.79,96.6879]
[1642476752042,25.5859,139.91,139.79,107.3235]
[1642476752943,25.5859,139.91,139.75,10.484]
[1642476752944,10.53906886,139.9,139.75,10.484]
[1642476753145,10.53906886,139.9,139.7,3.73224705]
[1642476753146,2.86,139.89,139.7,3.73224705]
[1642476753346,209.4,139.88,139.69,10.7002]
[1642476753547,199.17,139.86,139.68,6.10499139]
[1642476753745,71.3,139.83,139.68,6.10499139]
[1642476753949,13.092,139.82,139.69,36.43828979]
[1642476754146,20.9626,139.81,139.69,36.43828979]
[1642476754345,2.862,139.8,139.69,42.43828979]
[1642476754747,3.122,139.8,139.69,42.43828979]
[1642476754949,0.25,139.79,139.69,42.43828979]
[1642476755176,2.862,139.78,139.69,42.43828979]
[1642476755347,0.25,139.77,139.69,36.43828979]
[1642476755947,0.25,139.77,139.69,36.69828979]
[1642476756347,0.25,139.77,139.7,0.25]
[1642476756649,0.25,139.77,139.69,36.43828979]
[1642476756847,2.862,139.76,139.69,36.43828979]
[1642476757347,0.25,139.75,139.69,36.43828979]
[1642476759051,0.25,139.75,139.69,36.69828979]
[1642476762555,3.122,139.76,139.7,0.25]
[1642476762787,0.26,139.76,139.7,0.25]
[1642476763185,0.25,139.76,139.7,0.25]
[1642476763788,3.122,139.77,139.7,0.25]
[1642476763986,0.26,139.77,139.7,0.25]
[1642476764390,16.49,139.79,139.7,0.25]
[1642476764988,16.49,139.79,139.7,10.9813]
[1642476765187,0.25,139.78,139.7,10.9813]
[1642476765388,0.25,139.78,139.7,17.2413]
[1642476765995,0.25,139.79,139.7,6.51]
[1642476766190,2.862,139.78,139.7,6.51]
[1642476766390,0.26,139.78,139.7,6.51]
[1642476766591,3.112,139.79,139.7,6.51]
[1642476766790,0.51,139.79,139.7,0.51]
[1642476766994,0.25,139.79,139.7,6.25]
[1642476767390,0.25,139.79,139.7,6.51]
[1642476767591,0.25,139.79,139.7,11.2414]
[1642476767791,0.25,139.79,139.7,17.2414]
[1642476767996,0.25,139.79,139.7,0.51]
[1642476768391,0.25,139.79,139.7,0.25]
[1642476768591,10.9834,139.79,139.7,0.25]
[1642476768790,82.5434,139.79,139.7,0.25]
[1642476768992,11.2434,139.79,139.7,0.25]
[1642476769192,2.862,139.78,139.7,0.25]
[1642476769392,0.25,139.77,139.7,0.25]
[1642476771693,0.25,139.77,139.69,36.69828979]
[1642476775600,10.9851,139.77,139.69,36.69828979]
[1642476775802,11.2451,139.77,139.69,36.69828979]
[1642476779907,11.2451,139.77,139.7,0.25]
[1642476780304,11.2451,139.77,139.69,36.69828979]
[1642476783308,17.2451,139.77,139.69,36.69828979]
[1642476783509,0.25,139.77,139.69,36.69828979]
[1642476784019,0.25,139.77,139.7,0.25]
[1642476785715,0.25,139.77,139.69,36.69828979]
[1642476785916,0.25,139.77,139.7,0.25]
[1642476786315,9.122,139.78,139.7,0.25]
[1642476787816,0.25,139.77,139.7,0.25]
[1642476788939,0.25,139.77,139.69,36.69828979]
[1642476790245,0.25,139.77,139.7,0.25]
[1642476790646,8.862,139.78,139.7,0.25]
[1642476791947,6.0,139.78,139.7,0.25]
[1642476792347,36.97819481,139.79,139.7,0.25]
[1642476792548,36.97819481,139.79,139.68,2.0381512]
[1642476792748,2.862,139.78,139.69,2.0381512]
[1642476793147,10.7352,139.77,139.69,2.0381512]
[1642476793348,3.112,139.76,139.69,2.0381512]
[1642476793547,9.67921223,139.76,139.67,76.86881697]
[1642476793750,9.93921223,139.76,139.67,76.86881697]
[1642476794347,3.122,139.76,139.68,0.25]
[1642476794547,0.26,139.76,139.68,0.25]
[1642476794847,2.25859481,139.78,139.68,0.25]
[1642476795249,0.26,139.78,139.68,2.2881512]
[1642476795447,0.26,139.78,139.68,2.5481512]
[1642476795647,57.86394994,139.79,139.68,13.2815512]
[1642476795846,0.25,139.78,139.68,13.2815512]
[1642476797649,0.25,139.78,139.68,19.2815512]
[1642476798051,0.25,139.78,139.7,2.0381512]
[1642476798251,0.25,139.78,139.71,0.25]
[1642476798853,0.25,139.78,139.71,43.0279523]
[1642476799052,0.25,139.78,139.71,43.2879523]
[1642476801458,26.24399481,139.79,139.71,43.2879523]
[1642476801656,1.99859481,139.79,139.71,54.0189523]
[1642476802459,1.99859481,139.79,139.71,56.0571035]
[1642476802758,1.99859481,139.8,139.71,62.0571035]
[1642476803259,2.25859481,139.8,139.71,62.0571035]
[1642476803760,1.99859481,139.8,139.71,62.0571035]
[1642476804161,6.20291637,139.79,139.71,62.0571035]
[1642476804359,1.99859481,139.8,139.71,50.8161035]
[1642476804560,0.25,139.78,139.72,2.0381512]
[1642476804763,0.25,139.79,139.72,2.0381512]